bitfinex-derivatives/quotes_SOLF0:USTF0_20240904
["timestamp","ask_amount","ask_price","bid_price","bid_amount"]
[1725414359436,0.05790911,126.58,126.55,0.05271564]
[1725414360144,0.05790911,126.58,126.56,7.85712988]
[1725414360644,0.05790911,126.58,126.56,3.90612988]
[1725414361651,0.05790911,126.58,126.55,0.05271564]
[1725414361850,0.05790911,126.58,126.55,4.07342955]
[1725414362045,0.05790911,126.58,126.55,0.05271564]
[1725414362249,0.05790911,126.58,126.55,41.06271564]
[1725414362638,0.05790911,126.58,126.55,45.09883912]
[1725414362839,0.05790911,126.58,126.57,44.9609]
[1725414363047,0.05790911,126.58,126.57,48.88879014]
[1725414364151,0.05790911,126.58,126.57,3.9509]
[1725414364354,0.05790911,126.58,126.55,0.05271564]
[1725414364652,0.05790911,126.58,126.55,3.937555]
[1725414364854,0.05790911,126.58,126.55,0.05271564]
[1725414365057,0.05790911,126.58,126.55,4.08882518]
[1725414365246,0.05790911,126.58,126.55,0.05271564]
[1725414365753,0.05790911,126.58,126.55,4.05722827]
[1725414365937,0.05790911,126.58,126.55,0.05271564]
[1725414366648,3.33840911,126.58,126.55,0.05271564]
[1725414366848,1.6725,126.57,126.49,1.1445]
[1725414367148,1.6725,126.57,126.48,41.01]
[1725414367549,1.6725,126.57,126.51,41.01]
[1725414367756,1.6725,126.57,126.51,44.99973121]
[1725414367946,0.0561999,126.55,126.53,0.05470329]
[1725414368348,0.0561999,126.55,126.53,41.06470329]
[1725414369051,7.929,126.7,126.53,41.06470329]
[1725414369349,41.01,126.67,126.56,41.01]
[1725414370055,0.05311632,126.63,126.6,0.05472331]
[1725414370556,1.74441632,126.63,126.6,0.05472331]
[1725414370746,1.74441632,126.63,126.53,3.98325497]
[1725414370946,1.5747,126.62,126.52,41.01]
[1725414371145,7.929,126.68,126.52,41.01]
[1725414371344,1.6913,126.64,126.54,41.01]
[1725414371747,0.05665549,126.6,126.58,0.05747115]
[1725414371951,0.05665549,126.6,126.58,4.05929331]
[1725414372555,0.05665549,126.6,126.4,41.01]
[1725414372850,3.93742957,126.6,126.5,41.01]
[1725414373151,41.01,126.61,126.5,44.99514999]
[1725414373552,0.05833857,126.57,126.54,0.05254831]
[1725414374047,0.05833857,126.57,126.5,48.94804999]
[1725414374048,0.05833857,126.57,126.5,3.98514999]
[1725414374249,0.05833857,126.57,126.5,41.01]
[1725414374445,0.05833857,126.57,126.5,44.95801268]
[1725414374851,0.05833857,126.57,126.51,3.9525]
[1725414375050,0.05833857,126.57,126.53,0.05990725]
[1725414375245,0.05833857,126.57,126.54,41.01]
[1725414375449,0.05833857,126.57,126.54,44.88729375]
[1725414375849,0.05833857,126.57,126.54,48.83909375]
[1725414376553,0.05833857,126.57,126.54,44.88729375]
[1725414376856,0.05833857,126.57,126.53,0.05990725]
[1725414377057,0.05833857,126.57,126.53,7.88296898]
[1725414377259,0.05833857,126.57,126.53,0.05990725]
[1725414377453,4.04712419,126.57,126.53,0.05990725]
[1725414377655,3.9513,126.56,126.53,0.05990725]
[1725414377953,7.317,126.56,126.53,0.05990725]
[1725414378147,3.3657,126.56,126.53,0.05990725]
[1725414378352,4.04712419,126.57,126.53,0.05990725]
[1725414378353,0.05833857,126.57,126.53,0.05990725]
[1725414378554,0.05833857,126.57,126.53,4.00365756]
[1725414378757,0.05833857,126.57,126.53,0.05990725]
[1725414379855,4.00943857,126.57,126.53,0.05990725]
[1725414380059,0.05833857,126.57,126.53,0.05990725]
[1725414380360,3.3313,126.56,126.53,0.05990725]
[1725414382467,7.53664544,197.0,126.55,41.01]
[1725414382468,1.0,126.69,126.55,41.01]
[1725414382654,12.9285,126.65,126.55,44.95911484]
[1725414382964,53.9385,126.65,126.55,3.94911484]
[1725414383152,41.01,126.63,126.5,41.01]
[1725414383350,41.01,126.61,126.48,41.01]
[1725414383549,0.05440003,126.56,126.53,0.05722036]
[1725414383757,4.06199101,126.56,126.53,0.05722036]
[1725414383950,8.01329101,126.56,126.53,0.05722036]
[1725414384660,0.05440003,126.56,126.53,0.05722036]
[1725414384856,4.05211328,126.56,126.53,0.05722036]
[1725414385365,8.00351328,126.56,126.53,0.05722036]
[1725414385569,0.05440003,126.56,126.53,0.05722036]
[1725414386151,0.05440003,126.56,126.54,4.02687439]
[1725414386453,0.05440003,126.56,126.53,0.05722036]
[1725414386454,4.00560003,126.56,126.53,0.05722036]
[1725414388367,0.05440003,126.56,126.53,0.05722036]
[1725414388764,3.95851513,126.58,126.53,0.05722036]
[1725414389060,1.6646,126.58,126.53,3.96128111]
[1725414389259,3.90517119,126.57,126.5,41.01]
[1725414389662,0.05843766,126.55,126.52,0.05289407]
[1725414389967,0.05843766,126.55,126.53,3.9521]
[1725414390766,0.05843766,126.55,126.52,0.05289407]
[1725414391661,0.05843766,126.55,126.52,4.00519407]
[1725414391861,1.6457,126.65,126.52,41.06289407]
[1725414392162,3.9499,126.61,126.54,34.13]
[1725414392473,34.13,126.62,126.54,3.99242068]
[1725414392674,3.9502,126.6,126.52,34.13]
[1725414392966,34.13,126.62,126.56,0.05006769]
[1725414392967,0.05117664,126.58,126.56,0.05006769]
[1725414393168,4.00187664,126.58,126.56,0.05006769]
[1725414393369,0.05117664,126.58,126.56,0.05006769]
[1725414394064,0.05117664,126.58,126.57,3.9509]
[1725414394570,0.05117664,126.58,126.56,0.05006769]
[1725414394763,0.05117664,126.58,126.56,4.00126769]
[1725414394965,1.6457,126.65,126.56,34.18006769]
[1725414395160,5.5129,126.64,126.58,3.9505]
[1725414395470,5.43620837,126.64,126.58,3.9505]
[1725414395769,5.43620837,126.64,126.56,38.0551279]
[1725414395963,0.04378019,126.61,126.59,0.05430578]
[1725414398269,3.99358019,126.61,126.59,0.05430578]
[1725414398469,4.0049021,126.6,126.56,3.99700367]
[1725414398773,4.0049021,126.6,126.51,34.13]
[1725414398976,3.9501,126.6,126.53,34.13]
[1725414399467,0.05629977,126.58,126.55,4.00728763]
[1725414399674,0.05629977,126.58,126.55,0.05588763]
[1725414400067,1.564,126.64,126.55,34.18588763]
[1725414400272,1.564,126.64,126.55,34.13]
[1725414400572,3.9491,126.63,126.58,3.9504]
[1725414400874,1.564,126.64,126.55,38.16476362]
[1725414401173,0.0417862,126.61,126.58,0.05351893]
[1725414402974,3.4912862,126.62,126.58,0.05351893]
[1725414403280,3.9499,126.61,126.58,0.05351893]
[1725414403878,3.9494,126.62,126.58,0.05351893]
[1725414404371,1.564,126.64,126.58,0.05351893]
[1725414405077,3.9493,126.63,126.58,4.00391893]
[1725414405272,3.9493,126.63,126.59,3.97204237]
[1725414405572,1.564,126.64,126.58,4.00391893]
[1725414405879,1.564,126.64,126.58,0.05351893]
[1725414406070,35.694,126.64,126.58,0.05351893]
[1725414406377,3.9508,126.58,126.54,3.9518]
[1725414406571,34.13,126.62,126.53,3.91477418]
[1725414406773,34.13,126.6,126.48,35.1714]
[1725414406977,3.952,126.54,126.5,3.9531]
[1725414407377,0.05029343,126.53,126.51,0.05013035]
[1725414407578,0.05029343,126.53,126.48,3.96295845]
[1725414407777,1.68759343,126.53,126.44,34.13]
[1725414407972,1.6373,126.53,126.44,34.13]
[1725414408277,1.6373,126.53,126.48,34.13]
[1725414408466,1.6373,126.53,126.48,38.05221654]
[1725414408673,0.05050393,126.52,126.49,4.00443542]
[1725414409375,0.05050393,126.52,126.49,0.05103542]
[1725414411189,3.953,126.51,126.49,0.05103542]
[1725414411390,0.05050393,126.52,126.49,0.05103542]
[1725414411782,0.05050393,126.52,126.5,3.9529]
[1725414411978,0.05050393,126.52,126.49,4.06969667]
[1725414412387,1.6306,126.59,126.5,34.13]
[1725414412597,1.6306,126.59,126.5,35.8547]
[1725414412895,5.66309553,126.59,126.5,35.8547]
[1725414413196,5.65084231,126.59,126.5,5.6587745]
[1725414413400,0.05089351,126.56,126.53,0.05921929]
[1725414413699,3.9516,126.55,126.53,0.05921929]
[1725414414006,0.05089351,126.56,126.53,0.05921929]
[1725414414493,34.13,126.62,126.53,0.05921929]
[1725414414699,3.9498,126.61,126.57,3.9508]
[1725414414889,38.05334764,126.64,126.53,34.13]
[1725414415086,38.05334764,126.64,126.53,38.06006503]
[1725414415293,38.05334764,126.64,126.56,3.9509]
[1725414415495,38.05334764,126.64,126.59,0.05415749]
[1725414416897,34.13,126.64,126.59,0.05415749]
[1725414417197,38.16951888,126.64,126.59,0.05415749]
[1725414417494,1.693,126.66,126.59,0.05415749]
[1725414417695,34.13,126.65,126.59,4.05653319]
[1725414417892,3.9496,126.62,126.59,0.05415749]
[1725414418093,1.6293,126.64,126.59,4.07201441]
[1725414418292,5.5782,126.64,126.59,0.05415749]
[1725414418693,1.6293,126.64,126.59,0.05415749]
[1725414418994,1.6293,126.64,126.59,4.02185538]
[1725414419187,1.6293,126.64,126.59,0.05415749]
[1725414419389,3.9495,126.62,126.59,0.05415749]
[1725414420199,3.9495,126.62,126.59,4.08109833]
[1725414420500,3.9492,126.63,126.59,4.08109833]
[1725414420688,3.9492,126.63,126.59,8.03119833]
[1725414420893,3.95,126.6,126.59,0.05415749]
[1725414421089,35.7593,126.64,126.52,34.13]
[1725414421289,35.7593,126.64,126.55,3.9515]
[1725414421499,35.7593,126.64,126.52,38.01238124]
[1725414421500,3.9506,126.58,126.52,38.01238124]
[1725414421797,3.9506,126.58,126.54,3.9516]
[1725414422198,0.05621971,126.57,126.55,0.05236478]
[1725414422703,3.9498,126.61,126.55,0.05236478]
[1725414422899,5.0383,126.65,126.56,2.47096732]
[1725414423102,5.0383,126.65,126.57,2.47096732]
[1725414423301,5.0383,126.65,126.56,34.13]
[1725414423302,9.07117339,126.65,126.56,34.13]
[1725414423502,9.07117339,126.65,126.57,2.46699738]
[1725414423705,9.07117339,126.65,126.6,0.05352307]
[1725414423999,3.9492,126.63,126.6,0.05352307]
[1725414424202,9.07117339,126.65,126.6,0.05352307]
[1725414424808,1.6833,126.65,126.6,0.05352307]
[1725414425306,3.9493,126.63,126.6,0.05352307]
[1725414425810,3.9493,126.63,126.6,4.00352307]
[1725414426003,1.6833,126.65,126.6,4.00352307]
[1725414426204,1.6833,126.65,126.6,0.05352307]
[1725414427011,3.9488,126.64,126.6,4.00332307]
[1725414428212,3.9491,126.63,126.6,4.00332307]
[1725414428402,3.9491,126.63,126.6,0.05352307]
[1725414429109,34.13,126.67,126.61,3.9496]
[1725414429315,34.13,126.67,126.63,0.05431669]
[1725414429611,3.9487,126.65,126.64,0.04999208]
[1725414429807,3.88594261,126.66,126.63,0.05842625]
[1725414430012,3.949,126.64,126.63,0.05674055]
[1725414432112,34.13,126.66,126.56,34.13]
[1725414432414,34.13,126.66,126.57,2.46184922]
[1725414432617,38.08325005,126.66,126.57,4.03499241]
[1725414432817,38.08325005,126.66,126.56,34.13]
[1725414433019,38.08325005,126.66,126.59,3.9501]
[1725414433317,0.05693017,126.64,126.61,0.05421253]
[1725414433518,3.9496,126.62,126.61,0.05421253]
[1725414434014,1.5833,126.63,126.56,3.95482962]
[1725414434222,1.5833,126.63,126.54,34.13]
[1725414434420,1.5833,126.63,126.57,34.13]
[1725414434621,1.5833,126.63,126.6,3.9498]
[1725414434820,1.5833,126.63,126.61,3.86027067]
[1725414435118,1.63541387,126.63,126.61,3.92091704]
[1725414435320,1.63541387,126.63,126.61,0.06064637]
[1725414435522,0.05211387,126.63,126.61,0.06064637]
[1725414436020,0.05211387,126.63,126.61,4.08600739]
[1725414436218,0.05211387,126.63,126.61,0.06064637]
[1725414436821,3.9494,126.62,126.61,0.06064637]
[1725414437324,0.05211387,126.63,126.61,3.92684133]
[1725414437923,0.05211387,126.63,126.61,7.87624133]
[1725414438321,0.05211387,126.63,126.61,3.97028616]
[1725414439222,0.05211387,126.63,126.61,7.91988616]
[1725414440225,4.00131387,126.63,126.61,3.97028616]
[1725414440420,7.929,126.75,126.62,34.13]
[1725414440721,7.929,126.75,126.6,34.13]
[1725414440722,1.6568,126.74,126.65,34.13]
[1725414440920,3.9471,126.7,126.66,3.948]
[1725414441225,1.6568,126.74,126.65,34.13]
[1725414441426,0.05082268,126.71,126.68,0.05163215]
[1725414441625,0.05082268,126.71,126.69,3.93104983]
[1725414442127,0.05082268,126.71,126.7,3.9469]
[1725414443023,0.05082268,126.71,126.7,7.89137851]
[1725414443423,0.00752268,126.71,126.7,3.9469]
[1725414443621,5.0481,126.81,126.7,3.93302464]
[1725414443926,7.31429099,126.83,126.8,34.13]
[1725414444225,27.63266172,126.93,126.8,34.13]
[1725414444226,5.0481,126.91,126.82,34.13]
[1725414444431,102.10844404,126.99,126.88,34.13]
[1725414444732,3.9394,126.95,126.91,0.05899309]
[1725414444937,7.83270592,126.95,126.91,4.09633476]
[1725414445121,102.10844404,126.99,126.91,0.05899309]
[1725414445322,3.99906367,126.98,126.91,3.91836182]
[1725414445522,34.13,126.97,126.91,0.05899309]
[1725414445921,3.2785,126.95,126.91,0.05899309]
[1725414446127,34.13,126.93,126.82,34.13]
[1725414446425,3.2785,126.95,126.72,34.13]
[1725414446426,34.13,126.91,126.8,34.13]
[1725414447022,34.13,126.9,126.8,34.13]
[1725414447227,0.05330721,126.87,126.84,0.05811686]
[1725414447424,34.13,126.86,126.76,34.13]
[1725414447731,3.2262,126.85,126.76,34.13]
[1725414447934,3.2262,126.85,126.78,34.13]
[1725414448134,7.10018773,126.85,126.78,34.13]
[1725414448430,0.053782,126.83,126.8,0.05194383]
[1725414448623,3.9434,126.81,126.8,0.05194383]
[1725414449429,3.90001147,126.82,126.74,34.13]
[1725414449636,15.19085033,126.85,126.76,34.13]
[1725414450040,7.26185033,126.85,126.78,34.13]
[1725414450636,3.99289379,126.83,126.8,34.19076399]
[1725414450835,3.99289379,126.83,126.81,3.85390203]
[1725414451432,0.04999379,126.83,126.81,3.85390203]
[1725414451833,0.04999379,126.83,126.8,0.06076399]
[1725414452032,3.9434,126.82,126.8,0.06076399]
[1725414452538,0.04999379,126.83,126.8,0.06076399]
[1725414453128,3.9434,126.81,126.8,0.06076399]
[1725414453536,0.04999379,126.83,126.8,0.06076399]
[1725414453746,7.53664544,206.41,126.8,34.19076399]
[1725414454038,42.5102,126.91,126.79,40.86]
[1725414454735,0.05570067,126.86,126.79,40.86]
[1725414454943,0.05570067,126.86,126.81,0.05638799]
[1725414455331,40.91570067,126.86,126.81,0.05638799]
[1725414455534,40.86,126.84,126.71,40.86]
[1725414455736,3.3234,126.83,126.71,40.86]
[1725414455936,1.0,126.85,126.73,40.86]
[1725414456141,44.1834,126.84,126.71,44.88832297]
[1725414456343,40.86,126.82,126.71,44.88832297]
[1725414456645,3.945,126.76,126.75,0.05072863]
[1725414458547,3.9462,126.73,126.7,3.9283709]
[1725414458741,3.9462,126.73,126.67,44.8078]
[1725414459039,3.3234,126.77,126.67,44.77298564]
[1725414459248,40.86,126.75,126.63,40.86]
[1725414459444,40.86,126.72,126.6,40.86]
[1725414459642,0.05466879,126.67,126.65,0.05087315]
[1725414459938,0.05466879,126.67,126.65,40.91087315]
[1725414459939,0.05402196,126.67,126.65,40.91087315]
[1725414460144,8.929,126.76,126.65,44.86134743]
[1725414460444,11.2524,126.77,126.65,44.86134743]
[1725414460646,3.3234,126.77,126.68,3.9473]
[1725414460838,3.9462,126.73,126.68,3.9473]
[1725414461038,3.3234,126.77,126.65,44.86134743]
[1725414461246,4.00552729,126.72,126.7,0.06048738]
[1725414461436,0.0577193,126.72,126.7,0.06048738]
[1725414463046,1.6654,126.8,126.7,0.06048738]
[1725414463047,7.53664544,201.03,126.71,40.86]
[1725414463342,40.86,126.85,126.71,40.86]
[1725414464147,3.9446,126.78,126.77,0.05926397]
[1725414464349,3.9446,126.78,126.76,0.05044853]
[1725414465146,1.0,126.84,126.76,0.05044853]
[1725414465341,1.0,126.84,126.73,40.86]
[1725414465541,3.91492424,126.83,126.73,44.84438257]
[1725414465742,3.944,126.8,126.75,3.9452]
[1725414466145,0.05129302,126.79,126.76,4.00230285]
[1725414466541,0.05129302,126.79,126.76,44.9310333]
[1725414466852,0.05129302,126.79,126.78,44.8044]
[1725414467040,0.05129302,126.79,126.78,48.8311454]
[1725414467241,0.05129302,126.79,126.78,7.9711454]
[1725414467444,0.05129302,126.79,126.76,0.05730285]
[1725414467847,0.05129302,126.79,126.77,3.95378282]
[1725414468145,0.05129302,126.79,126.78,3.9444]
[1725414469244,227.0,127.02,126.81,3.9434]
[1725414469449,44.0398,126.91,126.78,44.76408939]
[1725414469836,3.9418,126.87,126.78,44.76408939]
[1725414470243,3.9418,126.87,126.81,0.05569344]
[1725414470442,3.9418,126.87,126.81,4.05538364]
[1725414470744,44.0398,126.91,126.81,4.05538364]
[1725414471049,7.06828911,126.91,126.85,0.05887582]
[1725414471250,3.9413,126.89,126.85,0.05887582]
[1725414471451,4.03517991,126.95,126.85,44.81170256]
[1725414471648,3.9393,126.95,126.9,3.9404]
[1725414471848,4.03912321,126.97,126.91,0.05793298]
[1725414472053,45.8,126.99,126.93,0.05781051]
[1725414472351,40.86,126.96,126.84,40.86]
[1725414472547,40.86,126.96,126.84,44.75085509]
[1725414472944,40.86,126.96,126.87,3.9416]
[1725414473349,40.86,126.96,126.9,0.05733662]
[1725414473550,0.0566456,126.93,126.9,0.05733662]
[1725414473754,0.0566456,126.93,126.9,0.05807953]
[1725414474349,0.0031456,126.93,126.9,0.05807953]
[1725414475242,0.0031456,126.93,126.9,4.02372394]
[1725414475448,0.0031456,126.93,126.92,3.94]
[1725414476545,3.9369,127.03,126.92,40.86]
[1725414476742,3.9369,127.03,126.97,40.86]
[1725414476944,3.9369,127.03,126.98,4.03160326]
[1725414477150,3.2976,127.1,126.97,40.86]
[1725414477352,7.32841545,127.1,126.99,40.86]
[1725414477557,7.32841545,127.1,127.03,3.99362361]
[1725414477558,3.2976,127.1,127.03,3.99362361]
[1725414477751,3.2976,127.1,127.03,0.05722361]
[1725414478149,3.2976,127.1,127.06,3.9357]
[1725414478349,3.2976,127.1,127.07,3.96576951]
[1725414478549,1.6902,127.13,127.07,3.96576951]
[1725414478745,1.6902,127.13,127.08,3.935]
[1725414478746,5.6239,127.13,127.08,3.935]
[1725414478949,1.6902,127.13,127.07,3.96576951]
[1725414479149,3.3079,127.18,127.08,40.86]
[1725414479352,3.3079,127.18,127.12,0.0592197]
[1725414479753,3.86614407,127.17,127.12,4.03672446]
[1725414480048,3.86614407,127.17,127.12,0.0592197]
[1725414480254,3.3079,127.18,127.12,0.0592197]
[1725414480455,3.9331,127.15,127.12,0.0592197]
[1725414480748,40.86,127.19,127.12,0.0592197]
[1725414480950,7.12725662,127.18,127.12,0.0592197]
[1725414481247,3.2316,127.18,127.14,0.05763148]
[1725414481658,0.05882008,127.13,127.03,40.86]
[1725414481955,40.86,127.13,127.0,40.86]
[1725414482147,40.86,127.11,126.98,44.71630655]
[1725414482351,40.86,127.09,126.96,40.86]
[1725414482549,40.86,127.09,126.96,44.77783232]
[1725414482748,0.05998642,127.04,127.01,0.05256888]
[1725414482953,0.05998642,127.04,127.01,0.0574233]
[1725414483153,3.911929,127.03,126.94,40.86]
[1725414483450,40.86,127.04,126.94,3.95600708]
[1725414483654,40.86,127.0,126.88,3.9412]
[1725414483850,40.86,127.07,126.94,40.86]
[1725414484053,1.05977052,127.02,126.99,0.05654654]
[1725414484251,3.9377,127.0,126.99,0.05175191]
[1725414484457,0.05977052,127.02,126.99,0.05175191]
[1725414485159,4.02207447,127.02,126.99,0.05175191]
[1725414485356,3.9375,127.0,126.99,0.05175191]
[1725414485555,0.05977052,127.02,126.99,0.05175191]
[1725414485753,3.2245,127.07,126.98,40.86]
[1725414485970,105.93187879,127.14,127.03,40.86]
[1725414486659,0.05619236,127.1,127.07,0.05431695]
[1725414487461,0.05619236,127.1,127.08,40.86]
[1725414487661,0.05619236,127.1,127.07,0.05431695]
[1725414487857,0.05619236,127.1,127.08,40.86]
[1725414488057,40.86,127.25,127.08,40.86]
[1725414488258,6.42432996,127.24,127.11,40.86]
[1725414488458,1.44592996,127.23,127.11,40.86]
[1725414488768,1.44592996,127.23,127.11,44.83062621]
[1725414488963,1.44592996,127.23,127.16,0.05690331]
[1725414489165,3.9323,127.17,127.16,0.05690331]
[1725414489460,40.86,127.21,127.15,0.04978112]
[1725414489664,40.86,127.21,127.1,3.9344]
[1725414489857,40.86,127.21,127.09,40.86]
[1725414490459,40.86,127.19,127.06,44.84152756]
[1725414490665,0.05114184,127.14,127.11,0.05522508]
[1725414490864,3.9343,127.11,127.05,7.93040696]
[1725414491167,0.05907685,127.09,127.07,0.051054]
[1725414492164,1.0,127.18,127.07,40.911054]
[1725414492469,3.2713,127.24,127.16,40.86]
[1725414492671,7.2015,127.24,127.18,40.86]
[1725414492866,3.2713,127.24,127.18,40.86]
[1725414493072,3.9307,127.23,127.16,40.86]
[1725414493259,3.9307,127.23,127.17,3.932]
[1725414493566,3.9313,127.21,127.19,0.05775721]
[1725414493767,40.86,127.23,127.19,0.05775721]
[1725414493972,40.86,127.23,127.12,3.96924124]
[1725414494164,3.9322,127.18,127.12,7.90284124]
[1725414494365,40.86,127.23,127.11,40.86]
[1725414494670,40.86,127.23,127.12,3.9338]
[1725414494866,40.86,127.23,127.16,0.05058687]
[1725414495066,0.05257504,127.19,127.16,0.05058687]
[1725414496973,0.05257504,127.19,127.16,40.91058687]
[1725414497175,0.05257504,127.19,127.17,3.9321]
[1725414497677,0.05257504,127.19,127.16,40.91058687]
[1725414497877,0.05257504,127.19,127.16,44.84308687]
[1725414498576,0.05257504,127.19,127.17,3.9323]
[1725414499077,0.05257504,127.19,127.16,44.84308687]
[1725414499276,0.05257504,127.19,127.16,0.05058687]
[1725414500073,3.98437504,127.19,127.16,0.05058687]
[1725414500476,0.05257504,127.19,127.16,0.05058687]
[1725414501278,3.98427504,127.19,127.16,0.05058687]
[1725414501874,3.9321,127.18,127.16,0.05058687]
[1725414502078,0.05257504,127.19,127.16,0.05058687]
[1725414502979,3.9322,127.18,127.16,0.05058687]
[1725414503382,0.05257504,127.19,127.16,0.05058687]
[1725414504379,3.9322,127.18,127.16,0.05058687]
[1725414504581,0.05257504,127.19,127.16,0.05058687]
[1725414504976,3.9322,127.18,127.16,0.05058687]
[1725414506185,3.9323,127.17,127.16,0.05058687]
[1725414507685,3.9321,127.18,127.16,0.05058687]
[1725414508982,3.9323,127.17,127.16,0.05058687]
[1725414509186,0.05257504,127.19,127.16,0.05058687]
[1725414509489,0.05257504,127.19,127.16,44.84298687]
[1725414509681,0.05257504,127.19,127.16,40.91058687]
[1725414509888,0.05257504,127.19,127.16,0.05058687]
[1725414510081,3.9321,127.18,127.16,0.05058687]
[1725414510688,3.98437504,127.19,127.16,0.05058687]
[1725414513089,0.05257504,127.19,127.16,0.05058687]
[1725414513479,3.9323,127.17,127.16,0.05058687]
[1725414513883,1.7054,127.22,127.11,40.86]
[1725414514089,3.9331,127.15,127.12,3.96957446]
[1725414514792,0.05709571,127.15,127.12,0.05701915]
[1725414514990,0.05709571,127.15,127.12,3.94100955]
[1725414515189,0.05709571,127.15,127.14,3.9332]
[1725414515397,3.2713,127.24,127.18,40.86]
[1725414515787,3.931,127.22,127.18,44.7918]
[1725414515990,3.2713,127.24,127.18,44.7918]
[1725414516289,0.05528149,127.22,127.2,0.05662422]
[1725414517595,3.931,127.21,127.2,0.05662422]
[1725414517894,0.05528149,127.22,127.15,40.86]
[1725414518086,3.2713,127.24,127.15,40.86]
[1725414518395,3.2713,127.24,127.18,3.9318]
[1725414518581,3.9305,127.23,127.17,40.86]
[1725414518786,7.8541,127.34,127.19,40.86]
[1725414519093,3.9295,127.26,127.25,0.05236592]
[1725414519290,0.05989051,127.27,127.24,0.05982274]
[1725414519887,3.9298,127.25,127.24,0.05982274]
[1725414520285,0.05989051,127.27,127.24,0.05982274]
[1725414520490,0.05989051,127.27,127.25,3.91980896]
[1725414520691,0.05989051,127.27,127.24,0.05982274]
[1725414521894,0.05989051,127.27,127.2,3.88023526]
[1725414522192,3.98919051,127.27,127.23,44.7904]
[1725414522394,3.9293,127.27,127.23,44.7904]
[1725414522689,3.86058651,127.31,127.23,40.86]
[1725414522895,3.9291,127.28,127.24,3.9299]
[1725414523095,0.06058101,127.28,127.26,0.05382559]
[1725414523595,0.06058101,127.28,127.2,40.86]
[1725414523792,4.02288519,127.29,127.2,40.86]
[1725414523990,40.86,127.31,127.19,3.90774351]
[1725414523991,3.9306,127.23,127.19,3.90774351]
[1725414524188,3.9306,127.23,127.18,40.86]
[1725414524500,3.9306,127.23,127.19,3.86111074]
[1725414524691,0.05449716,127.22,127.2,0.0589066]
[1725414525391,0.05449716,127.22,127.2,3.89722169]
[1725414526087,3.2237,127.32,127.2,40.86]
[1725414526389,1.6382,127.31,127.2,40.86]
[1725414526596,5.52721575,127.31,127.25,3.9297]
[1725414526990,5.52721575,127.31,127.23,40.86]
[1725414527197,0.05685984,127.29,127.27,0.05044575]
[1725414527597,3.9291,127.28,127.27,0.05044575]
[1725414528099,0.05685984,127.29,127.27,0.05044575]
[1725414528597,3.98565984,127.29,127.27,0.05044575]
[1725414529092,7.8504,127.41,127.27,0.05044575]
[1725414529295,40.86,127.35,127.25,40.86]
[1725414529492,40.86,127.35,127.26,3.96755315]
[1725414529695,40.86,127.35,127.23,40.86]
[1725414529893,3.9288,127.29,127.25,3.9296]
[1725414530089,3.9288,127.29,127.26,3.94633629]
[1725414530294,0.05202928,127.28,127.26,0.04999383]
[1725414530694,3.9292,127.27,127.26,0.04999383]
[1725414531195,0.05202928,127.28,127.23,40.86]
[1725414531398,0.00242928,127.28,127.26,40.86]
[1725414531799,0.00242928,127.28,127.25,7.83724351]
[1725414532099,3.89045261,127.33,127.25,3.90774351]
[1725414532300,0.05463857,127.3,127.28,0.0534342]
[1725414532601,0.0524875,127.3,127.28,0.0534342]
[1725414533195,3.9286,127.29,127.28,0.0534342]
[1725414533599,0.0524875,127.3,127.28,0.0534342]
[1725414533797,3.9809875,127.3,127.28,0.0534342]
[1725414534297,3.9275,127.33,127.28,0.0534342]
[1725414534499,4.8048,127.39,127.28,40.9134342]
[1725414534699,4.8048,127.39,127.28,44.72006952]
[1725414534901,3.9269,127.35,127.31,3.9278]
[1725414535098,3.9269,127.35,127.28,44.72006952]
[1725414535297,4.8048,127.39,127.28,44.72006952]
[1725414535492,0.05484733,127.33,127.3,0.05233238]
[1725414535697,0.05903918,127.33,127.3,0.05321281]
[1725414535897,0.05903918,127.33,127.32,3.9277]
[1725414536902,0.05903918,127.33,127.32,7.77794746]
[1725414537102,0.05903918,127.33,127.32,3.9277]
[1725414537902,0.05903918,127.33,127.32,7.91200671]
[1725414538099,0.05903918,127.33,127.32,3.9277]
[1725414538501,51.71007584,127.57,127.32,3.9277]